bitfinex/quotes_BTCUSD_20230113
["timestamp","ask_amount","ask_price","bid_price","bid_amount"]
[1673607761595,1.11727631,19010.0,19007.0,0.77659395]
[1673607761857,0.78871806,19009.0,19007.0,0.53228901]
[1673607762393,0.78871806,19009.0,19007.0,0.03976939]
[1673607762394,0.43531952,19008.0,19007.0,0.03976939]
[1673607762660,0.3,19008.0,19007.0,0.03976939]
[1673607762922,0.4,19008.0,19007.0,0.03976939]
[1673607763193,0.51310221,19008.0,19007.0,0.03976939]
[1673607763484,0.51310221,19008.0,19007.0,0.00576939]
[1673607764019,0.4,19008.0,19007.0,0.00576939]
[1673607764285,0.98891321,19008.0,19007.0,0.00576939]
[1673607764547,0.9392327,19008.0,19007.0,0.03676939]
[1673607764820,1.4731791,19008.0,19007.0,0.00576939]
[1673607765081,1.4871791,19008.0,19007.0,0.03676939]
[1673607765344,1.11439061,19008.0,19007.0,0.03676939]
[1673607765869,1.11439061,19008.0,19007.0,0.03023864]
[1673607766373,1.59013383,19008.0,19007.0,0.03023864]
[1673607766635,1.89933383,19008.0,19007.0,0.03023864]
[1673607767162,1.8992413,19008.0,19007.0,0.03023864]
[1673607767463,1.8852413,19008.0,19006.0,0.00502283]
[1673607767722,1.22071094,19008.0,19007.0,0.028]
[1673607767986,1.25606157,19008.0,19007.0,0.028]
[1673607768263,1.25606157,19008.0,19006.0,0.00502283]
[1673607768547,0.62911294,19007.0,19006.0,0.03002283]
[1673607768854,0.72915726,19007.0,19006.0,0.00502283]
[1673607769135,0.1,19007.0,19006.0,0.00502283]
[1673607769930,0.63923984,19007.0,19006.0,0.00502283]
[1673607770201,0.64423984,19007.0,19006.0,0.02202283]
[1673607773362,0.105,19007.0,19006.0,0.02202283]
[1673607774144,0.405,19007.0,19006.0,0.02202283]
[1673607774405,1.06655222,19007.0,19006.0,0.02202283]
[1673607774694,1.97135482,19007.0,19006.0,0.02202283]
[1673607774950,2.27945482,19007.0,19006.0,0.02202283]
[1673607775211,2.59986054,19007.0,19006.0,0.02202283]
[1673607775487,2.59986054,19007.0,19006.0,0.01205845]
[1673607775771,0.1,19006.0,19002.0,0.00756616]
[1673607776034,0.2544,19004.0,19002.0,0.00737616]
[1673607776294,0.5262327,19003.0,19002.0,0.00737616]
[1673607777063,0.5262327,19003.0,19002.0,0.01237616]
[1673607777065,0.254,19005.0,19002.0,0.00737616]
[1673607777323,0.254,19005.0,19002.0,0.92949149]
[1673607777324,0.6262327,19005.0,19002.0,0.92949149]
[1673607777578,0.005,19003.0,19002.0,0.01137616]
[1673607778137,0.60967828,19005.0,19003.0,0.69131769]
[1673607778383,0.012,19005.0,19003.0,0.90162263]
[1673607778644,0.012,19005.0,19004.0,0.1]
[1673607778904,0.012,19005.0,19003.0,0.69131769]
[1673607779515,0.04993905,19006.0,19003.0,0.90162263]
[1673607779760,0.04993905,19006.0,19004.0,0.1]
[1673607780019,0.63651806,19008.0,19004.0,0.1]
[1673607780267,0.63651806,19008.0,19004.0,0.31030494]
[1673607780268,0.09994946,19008.0,19004.0,0.31030494]
[1673607780518,0.014,19006.0,19005.0,0.63103695]
[1673607780969,0.014,19006.0,19005.0,0.62603695]
[1673607780979,0.09994946,19008.0,19005.0,0.62603695]
[1673607781232,0.09994946,19008.0,19005.0,0.83634189]
[1673607781511,0.09994946,19008.0,19006.0,0.31030494]
[1673607781759,0.09994946,19008.0,19007.0,0.1535]
[1673607782015,0.09994946,19008.0,19006.0,0.1]
[1673607782286,0.05130234,19008.0,19006.0,0.1]
[1673607782822,0.11030234,19008.0,19007.0,0.50802504]
[1673607783076,0.05130234,19008.0,19007.0,0.50402504]
[1673607783385,0.05130234,19008.0,19007.0,0.65862504]
[1673607783896,0.05130234,19008.0,19007.0,0.98617904]
[1673607784179,0.05130234,19008.0,19007.0,0.482154]
[1673607784443,0.05130234,19008.0,19007.0,0.723154]
[1673607785279,0.05130234,19008.0,19007.0,0.582154]
[1673607786116,0.05130234,19008.0,19007.0,0.882154]
[1673607787153,0.06846764,19011.0,19008.0,0.29621176]
[1673607787425,0.06846764,19011.0,19010.0,0.1]
[1673607787690,0.02,19011.0,19010.0,0.427554]
[1673607787954,0.50402108,19010.0,19008.0,0.7012251]
[1673607788225,0.6393406,19010.0,19008.0,0.04291176]
[1673607788583,0.50402108,19010.0,19008.0,0.04291176]
[1673607789059,0.50402108,19010.0,19008.0,0.18591176]
[1673607789318,0.50402108,19010.0,19008.0,0.04291176]
[1673607789575,0.50402108,19010.0,19008.0,0.18591176]
[1673607789835,0.50402108,19010.0,19008.0,0.04291176]
[1673607790056,0.50402108,19010.0,19008.0,0.12691176]
[1673607791427,0.1,19009.0,19008.0,0.12691176]
[1673607792615,0.1,19009.0,19008.0,0.04291176]
[1673607792847,0.1,19009.0,19008.0,0.12691176]
[1673607793294,0.77344623,19009.0,19008.0,0.12691176]
[1673607794028,0.1,19009.0,19008.0,0.12691176]
[1673607794288,0.29257487,19009.0,19008.0,0.12691176]
[1673607794544,0.81880757,19009.0,19008.0,0.12691176]
[1673607794803,1.11880757,19009.0,19008.0,0.12691176]
[1673607795079,0.81880757,19009.0,19008.0,0.12691176]
[1673607795893,0.78311895,19009.0,19008.0,0.12691176]
[1673607796151,1.37604288,19009.0,19008.0,0.12691176]
[1673607796423,1.31844833,19009.0,19008.0,0.12691176]
[1673607796723,1.01844833,19009.0,19008.0,0.12691176]
[1673607796986,1.31844833,19009.0,19008.0,0.12691176]
[1673607797252,1.80295666,19009.0,19008.0,0.12691176]
[1673607797517,2.13750007,19009.0,19008.0,0.12691176]
[1673607798072,1.82372757,19009.0,19008.0,0.04291176]
[1673607798339,1.82372757,19009.0,19008.0,0.05991176]
[1673607798609,1.82372757,19009.0,19008.0,0.04291176]
[1673607798878,1.82372757,19009.0,19008.0,0.05291176]
[1673607798879,1.53690441,19009.0,19008.0,0.05291176]
[1673607799369,1.96360274,19009.0,19008.0,0.05291176]
[1673607799631,1.96360274,19009.0,19008.0,0.04291176]
[1673607799897,2.51860274,19009.0,19008.0,0.05191176]
[1673607800154,2.57351128,19009.0,19008.0,0.05191176]
[1673607800965,1.96564672,19009.0,19008.0,0.04291176]
[1673607801260,1.35931652,19009.0,19008.0,0.05291176]
[1673607802807,1.65931652,19009.0,19008.0,0.05291176]
[1673607803339,2.50432016,19009.0,19008.0,0.05191176]
[1673607803571,1.81069262,19009.0,19008.0,0.05191176]
[1673607803839,1.75688346,19009.0,19008.0,0.05191176]
[1673607804103,1.25795321,19009.0,19008.0,0.05191176]
[1673607804425,1.26645321,19009.0,19008.0,0.04191176]
[1673607804646,1.26645321,19009.0,19008.0,0.05091176]
[1673607804883,1.50570482,19009.0,19008.0,0.05091176]
[1673607805400,1.97676771,19009.0,19008.0,0.05091176]
[1673607805913,1.97676771,19009.0,19008.0,0.04191176]
[1673607806732,1.98589771,19009.0,19008.0,0.04191176]
[1673607807012,1.98589771,19009.0,19008.0,0.05191176]
[1673607807013,2.05900607,19009.0,19008.0,0.05191176]
[1673607807277,1.48886448,19009.0,19008.0,0.05191176]
[1673607807553,1.6245475,19009.0,19008.0,0.05191176]
[1673607807817,0.3928227,19009.0,19008.0,0.70125743]
[1673607808096,0.39281763,19010.0,19008.0,0.70125743]
[1673607808362,0.00129996,19009.0,19008.0,0.70125743]
[1673607808643,0.15843457,19009.0,19008.0,0.70125743]
[1673607808902,0.39411759,19009.0,19008.0,0.70125743]
[1673607809182,0.15843457,19009.0,19008.0,0.69125743]
[1673607809734,0.15843457,19009.0,19008.0,0.70825743]
[1673607810003,0.15843457,19009.0,19008.0,0.69125743]
[1673607810262,0.15843457,19009.0,19008.0,0.69025743]
[1673607810833,0.00129996,19009.0,19008.0,0.69025743]
[1673607812332,0.00129996,19009.0,19008.0,0.6703707]
[1673607812334,0.00129996,19009.0,19008.0,0.55236576]
[1673607812590,0.00129996,19009.0,19008.0,1.20805847]
[1673607812856,0.00129996,19009.0,19008.0,0.55236576]
[1673607813654,0.00129996,19009.0,19008.0,0.79336576]
[1673607813910,0.00129996,19009.0,19008.0,0.88566576]
[1673607815545,0.00129996,19009.0,19008.0,0.74466576]
[1673607815768,0.00129996,19009.0,19008.0,0.88466576]
[1673607818465,0.00129996,19009.0,19008.0,1.18466576]
[1673607819192,0.00129996,19009.0,19008.0,0.88466576]
[1673607819422,0.00129996,19009.0,19008.0,1.46681187]
[1673607820039,0.00129996,19009.0,19008.0,1.37521187]
[1673607821069,0.13661948,19009.0,19008.0,1.09061187]
[1673607821339,0.00129996,19009.0,19008.0,0.76305787]
[1673607821599,0.00129996,19009.0,19008.0,0.18091176]
[1673607821879,0.65237959,19009.0,19008.0,0.18091176]
[1673607822438,0.78769911,19009.0,19008.0,0.18091176]
[1673607822716,0.65237959,19009.0,19008.0,0.04091176]
[1673607822980,1.01603392,19009.0,19008.0,0.13191176]
[1673607823243,0.75889931,19009.0,19008.0,0.04091176]
[1673607823508,0.65237959,19009.0,19008.0,0.06291176]
[1673607823776,0.65237959,19009.0,19008.0,0.04091176]
[1673607827421,0.00129996,19009.0,19008.0,0.04091176]
[1673607828711,0.00130359,19009.0,19008.0,0.04091176]
[1673607830320,0.64657673,19009.0,19008.0,0.04091176]
[1673607831965,0.49412122,19009.0,19008.0,0.04091176]
[1673607832213,0.33698661,19009.0,19008.0,0.04091176]
[1673607832464,0.65123678,19009.0,19008.0,0.04091176]
[1673607832736,0.41555376,19009.0,19008.0,0.04091176]
[1673607833012,1.33460716,19009.0,19008.0,0.04091176]
[1673607833262,2.10942616,19009.0,19008.0,0.04091176]
[1673607834574,1.76084079,19009.0,19008.0,0.04091176]
[1673607834821,1.76084079,19009.0,19008.0,0.04082913]
[1673607834822,0.74174386,19009.0,19008.0,0.04082913]
[1673607835085,0.84174386,19009.0,19008.0,0.04082913]
[1673607835342,0.74174386,19009.0,19008.0,0.04082913]
[1673607835815,0.84174386,19009.0,19008.0,0.04082913]
[1673607836089,0.1,19008.0,19004.0,0.66094281]
[1673607836369,0.13531952,19007.0,19004.0,0.56845281]
[1673607836630,0.29254348,19007.0,19004.0,0.56845281]
[1673607836908,0.23531952,19006.0,19002.0,0.09957616]
[1673607837192,0.13531952,19005.0,19002.0,0.60311211]
[1673607837712,0.13531952,19005.0,19003.0,0.70615283]
[1673607837965,0.30504372,19006.0,19003.0,0.70615283]
[1673607838547,0.5528557,19005.0,19003.0,0.70615283]
[1673607838808,0.5528557,19005.0,19003.0,0.84615283]
[1673607839068,0.5528557,19005.0,19003.0,0.70615283]
[1673607839327,0.5528557,19005.0,19003.0,0.84615283]
[1673607839583,0.5528557,19005.0,19003.0,0.70615283]
[1673607839868,0.66155222,19004.0,19003.0,0.091]
[1673607840137,0.66155222,19004.0,19002.0,0.00737616]
[1673607840138,1.24495222,19004.0,19002.0,0.00737616]
[1673607840402,1.24495222,19004.0,19003.0,0.091]
[1673607840403,1.42480357,19004.0,19003.0,0.091]
[1673607840663,1.26788074,19004.0,19003.0,0.091]
[1673607841265,1.26788074,19004.0,19002.0,0.00737616]
[1673607841266,1.51155179,19004.0,19002.0,0.00737616]
[1673607841546,0.15726896,19003.0,19002.0,0.00737616]
[1673607841804,0.25726896,19003.0,19002.0,0.00737616]
[1673607842371,0.49316683,19003.0,19002.0,0.00737616]
[1673607842656,0.25726896,19003.0,19002.0,0.00687616]
[1673607842921,1.43433691,19003.0,19002.0,0.00687616]
[1673607843181,1.73433691,19003.0,19002.0,0.00687616]
[1673607843455,1.76770994,19003.0,19002.0,0.00687616]
[1673607843727,2.10631305,19003.0,19002.0,0.00687616]
[1673607844005,1.53181207,19003.0,19002.0,0.00687616]
[1673607844264,1.84962767,19003.0,19002.0,0.00687616]
[1673607844529,1.11078273,19003.0,19002.0,0.00687616]
[1673607844785,0.87499908,19003.0,19002.0,0.00687616]
[1673607845353,0.6178156,19003.0,19002.0,0.00687616]
[1673607845902,0.7178156,19003.0,19002.0,0.00687616]
[1673607847511,0.95101387,19003.0,19002.0,0.00687616]
[1673607847777,0.7178156,19003.0,19002.0,0.00687616]
[1673607848298,0.1,19003.0,19002.0,0.00687616]
[1673607848556,1.65996652,19003.0,19002.0,0.00687616]
[1673607848812,1.99854663,19003.0,19002.0,0.00687616]
[1673607849104,1.66084979,19003.0,19002.0,0.00687616]
[1673607849381,1.84035469,19003.0,19002.0,0.00687616]
[1673607850181,2.5323788,19003.0,19002.0,0.00687616]
[1673607850453,1.76210655,19003.0,19002.0,0.00687616]
[1673607850740,2.35755235,19003.0,19002.0,0.00687616]
[1673607850996,2.35755235,19003.0,19002.0,0.00362494]
[1673607851264,2.17492725,19003.0,19002.0,0.00362494]
[1673607851523,3.42835981,19003.0,19001.0,0.00737616]
[1673607852021,2.72064317,19002.0,19001.0,0.00737616]
[1673607852024,2.14626425,19002.0,19001.0,0.00737616]
[1673607852289,1.08306994,19002.0,19001.0,0.00737616]
[1673607852546,1.3183258,19002.0,19001.0,0.00737616]
[1673607853069,1.08306994,19002.0,19001.0,0.00737616]
[1673607853330,1.08306994,19002.0,19001.0,0.0040811]
[1673607853587,1.31979313,19002.0,19001.0,0.0040811]
[1673607853851,2.55490732,19002.0,19001.0,0.0150811]
[1673607854117,2.31965146,19002.0,19001.0,0.0150811]
[1673607854657,2.89367423,19002.0,19001.0,0.0150811]
[1673607855204,2.55467871,19002.0,19001.0,0.0150811]
[1673607855459,2.69212691,19002.0,19001.0,0.0150811]
[1673607855759,2.84921912,19002.0,19001.0,0.0150811]
[1673607856060,3.34869065,19002.0,19001.0,1e-07]
[1673607856316,3.34869065,19002.0,19000.0,0.00844802]
[1673607856571,2.00018342,19001.0,19000.0,0.00844802]
[1673607856830,2.30018342,19001.0,19000.0,0.00844802]
[1673607857322,1.63993133,19001.0,19000.0,0.21875296]
[1673607857324,1.06434968,19001.0,19000.0,0.00844802]
[1673607857577,1.16434968,19001.0,19000.0,0.00844802]
[1673607857843,1.17834968,19001.0,19000.0,0.01944802]
[1673607858117,1.16434968,19001.0,19000.0,0.00844802]
[1673607858462,1.17934968,19001.0,19000.0,0.01344802]
[1673607858674,1.16434968,19001.0,19000.0,0.00844802]
[1673607858942,1.46434968,19001.0,19000.0,0.00844802]
[1673607859465,1.47834968,19001.0,19000.0,0.01944802]
[1673607859739,1.17834968,19001.0,19000.0,0.01944802]
[1673607860001,0.55211698,19001.0,19000.0,0.01944802]
[1673607860263,0.014,19001.0,19000.0,0.01944802]
[1673607860520,0.014,19001.0,19000.0,0.72726216]
[1673607861302,0.77924351,19001.0,19000.0,0.01944802]
[1673607861563,0.57230429,19001.0,19000.0,0.01944802]
[1673607862918,0.87230429,19001.0,19000.0,0.01944802]
[1673607863191,0.9323327,19001.0,19000.0,0.01944802]
[1673607863442,1.0323327,19001.0,19000.0,0.01944802]
[1673607863719,1.19395413,19001.0,19000.0,0.01944802]
[1673607865562,1.3873646,19001.0,19000.0,0.01944802]
[1673607865862,1.2873646,19001.0,19000.0,0.01944802]
[1673607867223,1.2873646,19001.0,19000.0,0.01934202]
[1673607867487,1.3873646,19001.0,19000.0,0.01934202]
[1673607867792,1.2873646,19001.0,19000.0,0.01934202]
[1673607868323,0.6690319,19001.0,19000.0,0.01934202]
[1673607869397,0.67033376,19001.0,19000.0,0.01934202]
[1673607870492,0.01530186,19001.0,19000.0,0.68247421]
[1673607871042,0.01530186,19001.0,19000.0,1.01002821]
[1673607871301,0.01530186,19001.0,19000.0,0.53119602]
[1673607871561,0.00130186,19001.0,19000.0,1.31138833]
[1673607872047,0.00230186,19001.0,19000.0,1.42138833]
[1673607872063,0.00130186,19001.0,19000.0,1.31138833]
[1673607872297,0.00230186,19001.0,19000.0,1.45038833]
[1673607872562,0.00130186,19001.0,19000.0,1.31138833]
[1673607872831,0.00230186,19001.0,19000.0,1.45038833]
[1673607873130,0.00230186,19001.0,19000.0,0.85079602]
[1673607873364,0.00230186,19001.0,19000.0,1.36560016]
[1673607873885,0.00230186,19001.0,19000.0,0.85079602]
[1673607874140,0.00230186,19001.0,19000.0,1.36567812]
[1673607874427,0.00230186,19001.0,19000.0,1.26567812]
[1673607874658,0.00230186,19001.0,19000.0,1.08137812]
[1673607875437,0.00230186,19001.0,19000.0,1.18137812]
[1673607876457,0.00230186,19001.0,19000.0,1.08137812]
[1673607876757,0.00230186,19001.0,19000.0,0.66222412]
[1673607876758,0.13762138,19001.0,19000.0,0.66222412]
[1673607877016,0.016064,19001.0,19000.0,0.66222412]
[1673607877323,0.00230186,19001.0,19000.0,0.66222412]
[1673607878591,0.00230186,19001.0,19000.0,0.14734202]
[1673607878854,0.56969749,19001.0,19000.0,0.14734202]
[1673607881307,0.66969749,19001.0,19000.0,0.01334102]
[1673607881566,0.83255806,19001.0,19000.0,0.01334102]
[1673607881828,1.06753545,19001.0,19000.0,0.01334102]
[1673607882089,1.3058732,19001.0,19000.0,0.01334102]
[1673607882382,1.48998727,19001.0,19000.0,0.01334102]
[1673607882664,1.48898727,19001.0,18999.0,0.00836238]
[1673607882925,0.33621741,19000.0,18999.0,0.00836238]
[1673607883187,0.49369545,19000.0,18999.0,0.00836238]
[1673607883741,0.98110427,19000.0,18999.0,0.00836238]
[1673607884035,1.63485806,19000.0,18999.0,0.00836238]
[1673607884294,2.30682964,19000.0,18999.0,0.01236238]
[1673607884551,2.05424278,19000.0,18999.0,0.01236238]
[1673607884833,1.31898887,19000.0,18999.0,0.01236238]
[1673607885190,1.71272522,19000.0,18999.0,0.01236238]
[1673607885443,1.31898887,19000.0,18999.0,0.01236238]
[1673607885953,2.32865559,19000.0,18999.0,0.01236238]
[1673607886205,2.69239326,19000.0,18999.0,0.01236238]
[1673607886761,2.07643915,19000.0,18999.0,0.01236238]
[1673607887024,2.07643915,19000.0,18999.0,0.00968911]
[1673607887025,1.68272654,19000.0,18999.0,0.00968911]
[1673607888268,1.68272654,19000.0,18999.0,0.00848911]
[1673607888269,2.31678976,19000.0,18999.0,0.00848911]
[1673607888525,2.15378943,19000.0,18999.0,0.00848911]
[1673607888779,1.68272654,19000.0,18999.0,0.00848911]
[1673607889036,2.15378943,19000.0,18999.0,0.00848911]
[1673607889291,1.68272654,19000.0,18999.0,0.00848911]
[1673607889579,1.83933647,19000.0,18999.0,0.00443992]
[1673607889840,1.89220103,19000.0,18999.0,0.00443992]
[1673607890105,2.36458807,19000.0,18999.0,0.00443992]
[1673607890390,1.89220103,19000.0,18999.0,0.00443992]
[1673607890913,1.50446336,19000.0,18999.0,0.00043992]
[1673607891166,2.48345891,19000.0,18999.0,0.00043992]
[1673607891728,2.48345891,19000.0,18999.0,0.00243992]
[1673607891982,2.47811874,19000.0,18999.0,0.00243992]
[1673607892243,2.61969021,19000.0,18999.0,0.00243992]
[1673607892499,2.94964559,19000.0,18999.0,0.00243992]
[1673607893538,4.44894742,19000.0,18999.0,0.00243992]
[1673607894042,4.46894742,19000.0,18999.0,0.00243992]
[1673607894383,4.46894742,19000.0,18999.0,0.0009796]
[1673607895084,4.25684559,19000.0,18999.0,0.0009796]
[1673607895346,3.06971874,19000.0,18999.0,0.0009796]
[1673607895613,3.15886287,19000.0,18999.0,0.0009796]
[1673607896122,2.6868988,19000.0,18999.0,0.0009796]
[1673607896376,3.15885874,19000.0,18999.0,0.0009796]
[1673607896661,3.58079278,19000.0,18999.0,0.0009796]
[1673607896949,3.10883284,19000.0,18999.0,0.0009796]
[1673607897468,3.58067908,19000.0,18999.0,0.0009796]
[1673607897724,3.40883284,19000.0,18999.0,0.0009796]
[1673607897974,3.7328666,19000.0,18999.0,0.0009796]
[1673607898461,3.88067818,19000.0,18999.0,0.0009796]
[1673607898725,4.52485807,19000.0,18999.0,0.0009796]
[1673607898991,4.0488208,19000.0,18999.0,0.0009796]
[1673607899545,3.62688676,19000.0,18999.0,0.00052529]
[1673607899772,3.30293336,19000.0,18999.0,0.00052529]
[1673607900583,3.30293336,19000.0,18999.0,0.21083023]
[1673607900584,2.047478,19000.0,18999.0,0.21083023]
[1673607900865,1.54677893,19000.0,18999.0,0.00052529]
[1673607901124,1.93980435,19000.0,18999.0,0.00052529]
[1673607901390,1.93846335,19000.0,18999.0,0.00052529]
[1673607901908,1.54543793,19000.0,18999.0,0.00052529]
[1673607902673,2.22996108,19000.0,18999.0,0.00052529]
[1673607903221,2.54433138,19000.0,18999.0,0.00052529]
[1673607903481,1.66037241,19000.0,18999.0,0.00052529]
[1673607904276,2.33908144,19000.0,18999.0,0.00052529]
[1673607905166,2.65347214,19000.0,18999.0,0.00052529]
[1673607905420,2.85555318,19000.0,18999.0,0.00052529]
[1673607905680,3.03994192,19000.0,18999.0,0.00052529]
[1673607905945,1.83801904,19000.0,18999.0,0.00052529]
[1673607906868,2.31820678,19000.0,18999.0,0.00052529]
[1673607907136,0.1,18999.0,18996.0,0.00704303]
[1673607907390,0.79968348,18997.0,18996.0,0.00704303]
[1673607907670,1.91030492,18997.0,18996.0,0.00704303]
[1673607908176,1.91027436,18997.0,18996.0,0.00704303]
[1673607908706,1.91027436,18997.0,18996.0,0.00904303]
[1673607908707,2.24656369,18997.0,18996.0,0.00904303]
[1673607908985,2.06217495,18997.0,18996.0,0.00904303]
[1673607909241,1.90492765,18997.0,18996.0,0.00904303]
[1673607909504,1.0773948,18997.0,18996.0,0.21934797]
[1673607909769,0.81938878,18997.0,18996.0,0.00904303]
[1673607910144,0.82068963,18997.0,18996.0,0.00904303]
[1673607911141,0.82068963,18997.0,18996.0,0.5311461]
[1673607911142,0.66353355,18997.0,18996.0,0.5311461]
[1673607911433,0.13730085,18997.0,18996.0,0.5311461]
[1673607912466,0.13730085,18997.0,18996.0,0.52049703]
[1673607913045,0.13730085,18997.0,18996.0,0.62049703]
[1673607913828,0.13730085,18997.0,18996.0,0.71279703]
[1673607914132,0.00130085,18997.0,18996.0,0.71079703]
[1673607914391,0.01470085,18997.0,18996.0,0.74379703]
[1673607914663,0.00031898,18998.0,18996.0,0.71079703]
[1673607914939,0.00031898,18998.0,18997.0,0.610754]
[1673607915834,0.01331898,18998.0,18997.0,0.610754]
[1673607916058,0.00031898,18998.0,18997.0,0.610754]
[1673607916957,0.01431898,18998.0,18997.0,0.656754]
[1673607917638,0.01431898,18998.0,18997.0,1.55935894]
[1673607917861,0.01431898,18998.0,18997.0,2.69320279]
[1673607918276,0.01431898,18998.0,18997.0,3.50174476]
[1673607918554,0.01431898,18998.0,18997.0,3.50183306]
[1673607918813,0.01431898,18998.0,18997.0,3.50348636]
[1673607919071,0.01431898,18998.0,18997.0,3.65725249]
[1673607919346,0.01431898,18998.0,18997.0,3.50353042]
[1673607919590,0.01431898,18998.0,18997.0,2.69479685]
[1673607919846,0.01431898,18998.0,18997.0,2.927926]
[1673607920117,0.01431898,18998.0,18997.0,3.50316273]
[1673607920380,0.01431898,18998.0,18997.0,3.5031699]
[1673607920661,0.02,19000.0,18997.0,4.2278147]
[1673607920931,0.02,19000.0,18999.0,1.78333383]
[1673607921179,0.02,19000.0,18999.0,3.82639957]
[1673607921457,0.02,19000.0,18999.0,3.45916373]
[1673607921727,0.0001,19000.0,18999.0,2.64851953]
[1673607922042,0.00013,19002.0,19000.0,0.1]
[1673607922304,0.00013,19002.0,19001.0,1.619254]
[1673607922558,0.00013,19002.0,19001.0,1.620554]
[1673607922814,0.00013,19002.0,19001.0,1.204854]
[1673607923100,0.00013,19002.0,19001.0,1.304854]
[1673607923628,0.060289,19006.0,19001.0,1.604854]
[1673607923887,0.01072478,19006.0,19005.0,0.0923]
[1673607924166,0.01072478,19006.0,19005.0,0.419854]
[1673607924434,0.70293769,19006.0,19005.0,0.419854]
[1673607924886,0.70293769,19006.0,19003.0,0.1914]
[1673607925414,0.70293769,19006.0,19005.0,0.14]
[1673607925672,0.70293769,19006.0,19003.0,0.1914]
[1673607926191,0.70293769,19006.0,19004.0,0.327554]
[1673607926468,0.70293769,19006.0,19004.0,0.67393538]
[1673607926731,0.70293769,19006.0,19005.0,0.327554]
[1673607926995,0.70293769,19006.0,19004.0,0.67393538]
[1673607928867,0.70293769,19006.0,19005.0,0.427554]
[1673607929132,0.01072478,19006.0,19005.0,0.519854]
[1673607930214,0.01202861,19006.0,19005.0,0.521854]
[1673607930746,0.01202861,19006.0,19005.0,0.519854]
[1673607931504,0.01202861,19006.0,19005.0,1.14696258]
[1673607931507,0.01202861,19006.0,19005.0,1.12742783]
[1673607931778,0.01202861,19006.0,19005.0,1.19342783]
[1673607932051,0.01202861,19006.0,19005.0,1.10112783]
[1673607932849,0.6483745,19006.0,19005.0,1.00112783]
[1673607933112,0.78369402,19006.0,19005.0,0.066]
[1673607933376,0.6678719,19006.0,19005.0,0.066]
[1673607934118,0.6483079,19006.0,19005.0,0.066]
[1673607934635,0.6678719,19006.0,19005.0,0.066]
[1673607934897,0.6483079,19006.0,19005.0,0.066]
[1673607935679,0.6683079,19006.0,19005.0,0.066]
[1673607935932,0.03196201,19006.0,19005.0,0.066]
[1673607936211,0.03196201,19006.0,19005.0,0.94758702]
[1673607936488,0.02196201,19006.0,19005.0,0.61976702]
[1673607937281,0.02196201,19006.0,19005.0,0.94758702]
[1673607938377,0.02196201,19006.0,19005.0,0.61976702]
[1673607938647,0.02196201,19006.0,19005.0,0.94758702]
[1673607939687,0.01696201,19006.0,19005.0,1.13898702]
[1673607940200,0.01696201,19006.0,19005.0,0.67752]
[1673607940708,0.01696201,19006.0,19005.0,0.61152]
[1673607940973,0.01696201,19006.0,19005.0,1.32822466]
[1673607941227,0.01696201,19006.0,19005.0,1.16169367]
[1673607941476,0.01696201,19006.0,19005.0,1.19446258]
[1673607941836,0.01696201,19006.0,19005.0,0.75152]
[1673607941996,0.01696201,19006.0,19005.0,1.28995294]
[1673607944354,0.01696201,19006.0,19005.0,1.18995294]
[1673607944571,0.01696201,19006.0,19005.0,1.00625294]
[1673607944816,0.01696201,19006.0,19005.0,0.67843294]
[1673607945840,0.79709207,19006.0,19005.0,0.14]
[1673607946092,0.68133655,19006.0,19005.0,0.14]
[1673607946344,0.66177255,19006.0,19005.0,0.14]
[1673607947371,0.01696201,19006.0,19005.0,0.14]
[1673607948173,0.01696201,19006.0,19005.0,0.7592977]
[1673607948997,0.01696201,19006.0,19005.0,0.6192977]
[1673607949845,0.01696201,19006.0,19005.0,0.7111977]
[1673607950111,0.02696201,19006.0,19005.0,1.0410177]
[1673607950376,0.01696201,19006.0,19005.0,1.0390177]
[1673607950633,0.01826574,19006.0,19005.0,1.0420177]
[1673607951129,0.01826574,19006.0,19005.0,1.0390177]
[1673607951131,0.01826574,19006.0,19005.0,1.1110177]
[1673607951405,0.01826574,19006.0,19005.0,0.68402]
[1673607952233,0.00130373,19006.0,19005.0,0.66705799]
[1673607952474,0.00130373,19006.0,19005.0,0.75915799]
[1673607954069,0.00130373,19006.0,19005.0,0.68422]
[1673607955147,0.00130373,19006.0,19005.0,0.59192]
[1673607955414,0.00130373,19006.0,19005.0,1.30176586]
[1673607955712,0.00130373,19006.0,19005.0,1.10966586]
[1673607957752,0.00130373,19006.0,19005.0,0.88184586]
[1673607958537,0.00130373,19006.0,19005.0,0.78184586]
[1673607961427,0.00130373,19006.0,19005.0,0.88184586]
[1673607961643,0.00130373,19006.0,19005.0,1.20966586]
[1673607962937,0.00130373,19006.0,19005.0,0.88184586]
[1673607965555,0.00130373,19006.0,19005.0,0.32874884]
[1673607965807,0.00130373,19006.0,19005.0,1.20153631]
[1673607966066,0.00130373,19006.0,19005.0,1.19153631]
[1673607966591,0.00130373,19006.0,19005.0,1.42693661]
[1673607967110,0.00130373,19006.0,19005.0,1.79757191]
[1673607967384,0.00130373,19006.0,19005.0,2.09757191]
[1673607967671,0.00130373,19006.0,19005.0,2.25072019]
[1673607969006,0.01072478,19007.0,19006.0,0.16452434]
[1673607969309,0.01072478,19007.0,19006.0,2.82340926]
[1673607969579,0.01072478,19007.0,19006.0,2.11605824]
[1673607970149,0.01072478,19007.0,19006.0,2.58231653]
[1673607970416,0.01072478,19007.0,19006.0,3.41151653]
[1673607970417,2.478e-05,19007.0,19006.0,3.41151653]
[1673607970932,0.00102478,19007.0,19006.0,3.08425824]
[1673607970933,0.00232644,19007.0,19006.0,3.08425824]
[1673607971459,0.00232644,19007.0,19006.0,3.0621289]
[1673607971726,0.00232644,19007.0,19006.0,3.06208023]
[1673607971985,0.00232644,19007.0,19006.0,2.66955824]
[1673607972779,0.00232644,19007.0,19006.0,3.06203073]
[1673607973044,0.00232644,19007.0,19006.0,3.37586572]
[1673607973612,0.00232644,19007.0,19006.0,3.06203073]
[1673607974659,4.4e-07,19007.0,19006.0,3.3758411]
[1673607974921,0.01084916,19008.0,19007.0,6e-05]
[1673607975181,0.01084916,19008.0,19007.0,2.42102664]
[1673607975455,0.01084916,19008.0,19007.0,1.33959969]
[1673607975969,0.01084916,19008.0,19007.0,1.43959969]
[1673607976230,0.01184916,19008.0,19007.0,1.57859969]
[1673607976532,0.01184916,19008.0,19007.0,0.87961855]
[1673607976791,0.01184916,19008.0,19007.0,1.82427732]
[1673607977041,0.01184916,19008.0,19007.0,1.36741877]
[1673607977803,0.01084916,19008.0,19007.0,1.36741877]
[1673607978071,0.01084916,19008.0,19007.0,1.22841877]
[1673607978666,0.01184916,19008.0,19007.0,1.36741877]
[1673607978845,0.01084916,19008.0,19007.0,1.22841877]
[1673607979124,0.14716868,19008.0,19007.0,0.56018]
[1673607979400,0.14716868,19008.0,19007.0,0.14006]
[1673607979401,0.75737698,19008.0,19007.0,0.14006]
[1673607982942,0.01184916,19008.0,19007.0,0.24006]
[1673607983200,0.01184916,19008.0,19007.0,0.56788]